bitfinex-derivatives/quotes_ETHF0:USTF0_20250624
["timestamp","ask_amount","ask_price","bid_price","bid_amount"]
[1750778898401,0.82017,2437.3,2437.2,0.82016]
[1750778898800,1.51784,2437.4,2437.3,0.82014]
[1750778899004,0.82008,2437.5,2437.4,0.82011]
[1750778899401,0.8838215,2437.6,2437.5,0.82007]
[1750778899599,0.82007,2437.5,2437.4,4.02788]
[1750778900997,0.82011,2437.4,2437.3,2.23081]
[1750778901199,0.82021,2437.2,2437.1,0.82018]
[1750778903204,0.82021,2437.1,2437.0,4.02802]
[1750778903805,0.82021,2437.1,2437.0,3.2078]
[1750778904004,1.50861,2437.1,2437.0,3.2078]
[1750778904508,1.50861,2437.1,2437.0,4.02804]
[1750778905811,8.4408,2437.2,2437.1,0.82021]
[1750778906906,8.4408,2437.2,2437.0,3.2078]
[1750778907106,0.82021,2437.1,2437.0,3.2078]
[1750778907702,0.82021,2437.1,2437.0,4.02804]
[1750778907902,0.82021,2437.1,2437.0,3.2078]
[1750778908107,2.18021,2437.1,2437.0,3.2078]
[1750778908707,0.82034,2436.8,2436.6,3.2078]
[1750778909013,0.82034,2436.8,2436.7,0.82031]
[1750778910414,0.82034,2436.8,2436.2,7.5663]
[1750778910415,0.82044,2436.4,2436.3,0.82046]
[1750778910618,0.82044,2436.5,2436.4,0.82042]
[1750778910809,9.08185,2436.7,2436.6,0.82037]
[1750778911110,9.08185,2436.7,2436.6,3.2078]
[1750778911507,0.82037,2436.6,2436.5,0.8204]
[1750778912912,8.40216,2436.7,2436.6,0.82037]
[1750778913408,0.82033,2436.8,2436.7,0.82034]
[1750778913614,7.73333,2436.8,2436.7,4.02814]
[1750778914208,7.73333,2436.8,2436.7,3.2078]
[1750778914812,0.82037,2436.6,2436.5,0.6942]
[1750778915514,0.82037,2436.6,2436.5,1.51461]
[1750778915710,1.4128,2437.0,2436.5,0.6942]
[1750778915912,0.8203,2436.9,2436.8,0.82027]
[1750778916108,0.8203,2436.9,2436.8,2.21157]
[1750778916307,6.914,2437.1,2436.8,2.21157]
[1750778916308,7.73423,2437.1,2437.0,0.82024]
[1750778916515,7.73423,2437.1,2437.0,4.02804]
[1750778917008,7.73421,2437.1,2437.0,4.02804]
[1750778917414,1.369,2437.3,2437.2,0.82017]
[1750778917615,7.5769,2437.3,2437.2,0.82017]
[1750778918016,0.6629,2437.3,2437.2,0.82017]
[1750778918615,1.48306,2437.3,2437.2,0.82017]
[1750778918816,0.82017,2437.2,2437.1,1.49378]
[1750778919615,0.82017,2437.2,2437.1,2.93688]
[1750778921017,0.8201,2437.5,2437.4,0.82009]
[1750778921321,0.82007,2437.6,2437.5,0.82006]
[1750778921518,0.82001,2437.7,2437.6,0.82004]
[1750778922223,7.73395,2437.9,2437.8,0.81997]
[1750778922819,4.48156485,2439.0,2437.9,2.04985]
[1750778923023,0.6685,2438.7,2438.6,4.0275]
[1750778923319,0.6685,2438.7,2438.0,0.6961]
[1750778923320,0.81971,2438.6,2438.4,0.81975]
[1750778923517,0.81971,2438.6,2438.5,0.81974]
[1750778923714,0.81971,2438.6,2438.3,3.8981]
[1750778923913,0.6685,2438.7,2438.3,3.8981]
[1750778924119,0.6685,2438.7,2438.6,4.0275]
[1750778924919,0.6685,2438.7,2438.5,4.02752]
[1750778925116,0.8197,2438.6,2438.5,4.02752]
[1750778925312,0.6685,2438.7,2438.6,0.8197]
[1750778925916,0.6685,2438.7,2438.5,4.02751]
[1750778926125,0.8197,2438.6,2438.5,4.02751]
[1750778926422,1.48819,2438.7,2438.6,0.8197]
[1750778926612,0.6685,2438.7,2438.5,3.2078]
[1750778927014,0.8197,2438.6,2438.5,4.02752]
[1750778927217,0.6685,2438.7,2438.6,0.8197]
[1750778927522,1.48817,2438.7,2438.6,0.8197]
[1750778928223,1.48817,2438.7,2438.5,3.2078]
[1750778928224,0.6685,2438.7,2438.3,1.3208]
[1750778928423,5.78370191,2438.5,2438.2,3.2078]
[1750778928722,6.906,2438.4,2438.0,0.81989]
[1750778928921,0.8199,2438.0,2437.9,4.02771]
[1750778929122,5.78370191,2438.2,2437.6,1.3795]
[1750778929320,6.60370191,2437.8,2437.7,0.82]
[1750778929635,0.82005,2437.6,2437.5,0.82005]
[1750778929919,0.82005,2437.6,2437.5,4.02785]
[1750778930423,0.82005,2437.6,2437.5,3.2078]
[1750778930817,0.82005,2437.6,2437.5,4.02787]
[1750778931022,0.82005,2437.6,2437.5,0.82007]
[1750778931724,6.905,2437.7,2437.2,3.2078]
[1750778932032,1.418,2437.6,2437.5,0.82007]
[1750778932219,8.40081,2437.7,2437.6,0.82004]
[1750778933530,0.82004,2437.6,2437.5,4.02785]
[1750778934028,8.40083,2437.7,2437.6,0.82004]
[1750778935229,6.905,2437.7,2437.6,0.82004]
[1750778935919,0.81998,2437.8,2437.7,0.82]
[1750778936327,8.37736,2437.9,2437.8,0.81997]
[1750778936527,8.37736,2437.9,2437.8,4.02777]
[1750778936727,7.5574,2437.9,2437.8,4.02777]
[1750778936928,4.09905,2438.2,2438.1,0.81987]
[1750778936929,1.52145,2438.2,2438.1,0.81987]
[1750778937330,7.6076,2438.2,2438.1,0.81987]
[1750778938126,6.906,2438.2,2438.1,0.81987]
[1750778938327,0.7611515,2438.3,2438.2,0.81984]
[1750778938826,1.5809515,2438.3,2438.2,0.81984]
[1750778939031,0.7611515,2438.3,2438.2,0.81984]
[1750778939233,1.5809515,2438.3,2438.2,0.81984]
[1750778939430,0.7611515,2438.3,2438.2,0.81984]
[1750778939922,1.5809515,2438.3,2438.2,0.81984]
[1750778940931,0.7611515,2438.3,2438.2,0.81984]
[1750778941227,1.5809515,2438.3,2438.2,0.81984]
[1750778941428,0.0637515,2438.3,2438.2,0.81984]
[1750778941830,0.0637515,2438.3,2438.2,2.20344]
[1750778943240,0.0637515,2438.3,2438.2,2.91234]
[1750778945233,0.0637515,2438.3,2438.2,0.81984]
[1750778947237,0.0637515,2438.3,2438.2,2.17224]
[1750778947435,0.0637515,2438.3,2438.2,2.88994]
[1750778947730,0.81965,2438.8,2438.4,2.04936]
[1750778947935,0.8197,2438.6,2438.5,4.02752]
[1750778948531,0.81968,2438.7,2438.6,0.81967]
[1750778951643,0.8197,2438.6,2438.5,3.2078]
[1750778951941,7.91440191,2438.6,2438.5,3.2078]
[1750778952243,0.81988,2438.2,2438.1,0.81984]
[1750778952429,2.0496,2438.2,2437.7,14.22492]
[1750778952640,0.81993,2438.0,2437.9,0.81989]
[1750778953444,6.48660191,2438.2,2437.7,5.2709]
[1750778953445,0.81989,2438.1,2438.0,0.81987]
[1750778955757,0.81993,2438.0,2437.9,0.81991]
[1750778956356,0.81997,2437.9,2437.7,0.701]
[1750778956551,1.50677,2437.9,2437.8,0.81995]
[1750778956751,0.81997,2437.8,2437.7,0.82]
[1750778957149,8.52036191,2437.9,2437.4,3.8665]
[1750778957460,0.82005,2437.6,2437.5,0.82003]
[1750778957649,0.82003,2437.7,2437.6,0.82]
[1750778960058,0.82007,2437.6,2437.5,0.82005]
[1750778960259,0.82011,2437.5,2437.4,0.82008]
[1750778960551,5.25774,2437.8,2437.4,0.82008]
[1750778960756,0.82006,2437.6,2437.5,0.82003]
[1750778960956,0.8837815,2437.7,2437.6,0.82001]
[1750778962656,0.0637515,2437.7,2437.6,0.82001]
[1750778964156,0.8837615,2437.7,2437.6,0.82001]
[1750778965260,0.8837615,2437.7,2437.4,0.82009]
[1750778965261,0.82011,2437.5,2437.4,0.82009]
[1750778965463,8.51631191,2437.6,2437.1,3.2078]
[1750778965657,8.51631191,2437.6,2437.2,0.82016]
[1750778965658,0.82014,2437.3,2437.2,0.82016]
[1750778966066,10.1068,2437.5,2437.0,1.3407]
[1750778966262,10.92689,2437.5,2437.4,0.82011]
[1750778966562,6.899,2437.5,2437.4,0.82011]
[1750778967764,0.0637515,2437.7,2437.6,0.82004]
[1750778968355,0.0637515,2437.7,2437.6,2.81654]
[1750778971464,0.0637515,2437.7,2437.6,6.06540252]
[1750778973966,0.0637515,2437.7,2437.6,2.81654]
[1750778974358,0.0637515,2437.7,2437.6,6.06540252]
[1750778975362,0.0637515,2437.7,2437.6,2.81654]
[1750778976766,0.0637515,2437.7,2437.6,0.82004]
[1750778979864,0.0637515,2437.7,2437.6,4.06890252]
[1750778980169,0.0637515,2437.7,2437.6,0.82004]
[1750778981473,0.0637515,2437.7,2437.6,5.37670252]
[1750778982772,0.82004,2437.6,2437.5,0.82006]
[1750778982969,1.48564,2437.6,2437.5,0.82006]
[1750778983472,0.6656,2437.6,2437.5,4.06892252]
[1750778984769,0.8837615,2437.7,2437.5,4.06892252]
[1750778984770,0.0637515,2437.7,2437.6,0.82004]
[1750778985874,0.0637515,2437.7,2437.6,2.19034]
[1750778986081,0.8837615,2437.7,2437.6,0.82004]
[1750778986265,0.0637515,2437.7,2437.6,0.82004]
[1750778986461,0.0637515,2437.7,2437.6,2.19034]
[1750778987172,0.8837615,2437.7,2437.6,2.19034]
[1750778987570,0.8837615,2437.7,2437.6,0.82004]
[1750778987981,0.0637515,2437.7,2437.6,0.82004]
[1750778990474,0.8837615,2437.7,2437.6,0.82004]
[1750778991076,0.0637515,2437.7,2437.6,0.82004]
[1750778991572,0.8837615,2437.7,2437.6,0.82004]
[1750778991774,0.0637515,2437.7,2437.6,0.82004]
[1750778991973,3.9360947,2437.7,2437.6,0.82004]
[1750778992473,0.82007,2437.5,2437.4,6.45666252]
[1750778992679,0.82011,2437.4,2437.3,0.82012]
[1750778992968,1.51031,2437.4,2437.3,0.82012]
[1750778993776,0.82014,2437.3,2437.2,4.06901252]
[1750778993967,1.52304,2437.3,2437.2,4.06901252]
[1750778994377,4.5753732,2437.3,2437.2,0.82015]
[1750778994578,0.82018,2437.2,2437.1,0.8202]
[1750778994779,0.82021,2437.1,2437.0,0.82022]
[1750778996280,0.8202,2437.2,2437.1,0.82018]
[1750778996781,4.5754032,2437.3,2437.2,0.82018]
[1750778998374,1.52307,2437.3,2437.2,0.82018]
[1750779000286,0.7029,2437.3,2437.2,0.82018]
[1750779000781,1.52304,2437.3,2437.2,0.82018]
[1750779001481,0.7029,2437.3,2437.2,0.82018]
[1750779001685,1.52304,2437.3,2437.2,0.82018]
[1750779001872,0.7029,2437.3,2437.2,0.82018]
[1750779002072,0.6902,2437.4,2437.3,0.82014]
[1750779002269,0.82009,2437.5,2437.4,0.82011]
[1750779003074,3.8724232,2437.5,2437.4,0.82011]
[1750779003276,0.82015,2437.4,2437.3,0.82012]
[1750779003582,7.5975,2437.6,2437.5,0.82007]
[1750779003784,8.41754,2437.6,2437.5,0.82007]
[1750779003980,7.5975,2437.6,2437.1,9.19884206]
[1750779004282,8.41756,2437.6,2437.5,0.82007]
[1750779004878,3.2078,2438.0,2437.4,5.25806]
[1750779005080,0.6519,2438.0,2437.9,0.81994]
[1750779005882,10.0958,2438.3,2438.1,0.81986]
[1750779006085,0.81989,2438.1,2438.0,0.8199]
[1750779006388,0.82004,2437.7,2437.6,0.82003]
[1750779006679,0.82004,2437.7,2437.4,3.26565206]
[1750779006680,0.8201,2437.5,2437.2,3.26565206]
[1750779006886,0.82012,2437.4,2437.3,0.82012]
[1750779007078,3.0523332,2437.4,2437.3,0.82012]
[1750779007278,3.8724432,2437.4,2437.3,0.82012]
[1750779007477,3.0523332,2437.4,2437.3,0.82012]
[1750779007686,3.8724432,2437.4,2437.3,0.82012]
[1750779008090,3.0523332,2437.4,2437.3,0.82012]
[1750779008289,3.8724432,2437.4,2437.3,0.82012]
[1750779010493,0.82017,2437.3,2437.2,0.82015]
[1750779011290,3.8724632,2437.4,2437.3,0.82014]
[1750779012189,0.82016,2437.3,2437.2,0.82014]
[1750779012387,3.8724632,2437.4,2437.3,0.82014]
[1750779013287,3.2078,2437.5,2437.4,0.82011]
[1750779013490,0.7625515,2437.6,2437.5,0.82007]
[1750779013695,0.0637515,2437.6,2437.5,0.82007]
[1750779014191,0.0637515,2437.6,2437.5,2.16987]
[1750779014381,0.0637515,2437.6,2437.5,5.43552206]
[1750779014587,0.0637515,2437.6,2437.5,2.16987]
[1750779015595,10.91566,2438.2,2438.1,0.81987]
[1750779015789,0.81991,2438.1,2438.0,0.81989]
[1750779015986,10.0958,2438.2,2438.1,0.81987]
[1750779016190,6.888,2438.4,2438.3,0.81981]
[1750779016389,0.81984,2438.3,2438.2,0.81983]
[1750779016894,0.81985,2438.2,2438.1,0.81985]
[1750779017483,0.81985,2438.2,2438.0,2.7411]
[1750779017484,5.0,2438.2,2437.7,3.26565206]
[1750779017692,0.82009,2437.5,2437.4,0.82011]
[1750779017888,5.77068394,2437.8,2437.3,3.26565206]
[1750779017889,7.69003,2437.7,2437.6,0.82004]
[1750779018089,9.03063,2437.7,2437.6,0.82004]
[1750779018587,8.2106,2437.7,2437.2,4.10813]
[1750779018790,0.82013,2437.4,2437.2,2.0577]
[1750779018988,0.82009,2437.5,2437.4,0.82008]
[1750779019185,0.82009,2437.5,2437.2,2.0577]
[1750779019391,0.82013,2437.4,2437.3,0.82012]
[1750779019581,0.82011,2437.4,2437.3,0.82012]
[1750779020296,0.82009,2437.5,2437.4,0.82008]
[1750779020698,0.82014,2437.4,2437.3,0.82012]
[1750779021589,0.8201,2437.5,2437.4,0.82008]
[1750779021891,2.05028,2437.4,2436.9,4.76261206]
[1750779022100,0.82028,2437.0,2436.9,0.82027]
[1750779022392,0.82026,2437.0,2436.9,0.82027]
[1750779022698,0.82027,2437.0,2436.9,0.82027]
[1750779022896,0.82029,2436.9,2436.8,0.82029]
[1750779023289,1.3419,2437.1,2436.6,5.32]
[1750779023290,0.82027,2437.0,2436.9,0.82026]
[1750779023590,0.8203,2436.9,2436.8,0.82028]
[1750779023789,0.82034,2436.7,2436.6,0.82036]
[1750779023988,0.82034,2436.7,2436.5,0.7126]
[1750779023989,0.82034,2436.8,2436.7,0.82032]
[1750779025299,0.8203,2436.9,2436.8,0.82028]
[1750779025598,0.82034,2436.8,2436.7,0.82032]
[1750779025800,0.82037,2436.7,2436.6,0.82035]
[1750779026095,6.87,2436.9,2436.5,2.064]
[1750779026292,0.82038,2436.6,2436.5,0.8204]
[1750779026493,0.82044,2436.5,2436.4,0.82042]
[1750779026794,0.82044,2436.4,2436.3,2.84425]
[1750779027387,17.64068394,2436.4,2436.0,3.26565206]
[1750779027592,0.82062,2435.9,2435.6,5.25958]
[1750779027792,0.82062,2435.9,2435.8,0.82065]
[1750779027992,6.87,2436.0,2435.4,3.26565206]
[1750779028192,0.82069,2435.7,2435.6,0.82069]
[1750779028397,0.82067,2435.8,2435.7,0.82066]
[1750779029197,8.2114,2436.0,2435.3,7.94614]
[1750779029393,0.82067,2435.8,2435.7,0.82067]
[1750779029791,3.2078,2436.1,2435.5,3.36257]
[1750779029991,4.02837,2436.1,2436.0,0.82058]
[1750779030192,10.0788,2436.1,2436.0,0.82058]
[1750779030498,10.89935,2436.1,2436.0,0.82058]
[1750779030695,0.82058,2436.0,2435.8,2.0578]
[1750779030889,0.8206,2436.0,2435.8,2.0578]
[1750779031294,10.89937,2436.1,2436.0,0.82058]
[1750779031903,10.0788,2436.1,2436.0,0.82058]
[1750779032698,6.871,2436.1,2436.0,0.82058]
[1750779032903,3.2078,2436.5,2435.8,2.0578]
[1750779033202,3.2078,2436.5,2436.4,0.82044]
[1750779033410,6.872,2436.8,2436.5,2.05101]
[1750779033411,7.69231,2436.8,2436.5,2.05101]
[1750779033602,6.872,2436.8,2436.7,0.82034]
[1750779033799,7.69231,2436.8,2436.7,0.82034]
[1750779034000,0.82034,2436.7,2436.6,2.24356]
[1750779034197,0.82034,2436.7,2436.6,0.82036]
[1750779034901,6.872,2436.8,2436.3,1.4232]
[1750779035103,2.05104,2436.5,2436.2,0.82051]
[1750779035306,9.59643,2436.4,2435.9,1.3564]
[1750779035497,0.82058,2436.0,2435.9,0.82059]
[1750779035703,6.872,2436.0,2435.3,5.25983]
[1750779035899,0.82078,2435.5,2435.4,2.24396]
[1750779036099,0.82078,2435.5,2435.4,0.82076]
[1750779036308,0.82074,2435.6,2435.5,0.82072]
[1750779036604,0.82077,2435.5,2435.4,0.82076]
[1750779036806,0.7163,2435.7,2435.3,4.02859]
[1750779036807,0.82078,2435.4,2435.3,4.02859]
[1750779037102,0.678,2435.4,2435.3,4.02859]
[1750779037310,6.872,2435.6,2435.5,0.82075]
[1750779037501,0.7163,2435.7,2435.6,0.82071]
[1750779037700,0.7163,2435.7,2435.4,1.4093]
[1750779037701,6.873,2435.8,2435.7,0.82068]
[1750779037901,0.678,2435.9,2435.8,0.82065]
[1750779038105,3.2078,2436.0,2435.9,0.82061]
[1750779038409,4.02838,2436.0,2435.9,0.82061]
[1750779038798,0.82059,2436.0,2435.9,0.82061]
[1750779039000,7.69356,2436.1,2436.0,0.82056]
[1750779039200,0.82062,2435.9,2435.8,0.82062]
[1750779039800,0.82062,2435.9,2435.6,4.6171]
[1750779039801,0.82066,2435.8,2435.7,0.82066]
[1750779040312,0.82064,2435.9,2435.8,0.82063]
[1750779040606,0.82068,2435.7,2435.6,0.82069]
[1750779040812,0.82067,2435.8,2435.7,0.82066]
[1750779041308,3.2078,2436.0,2435.2,3.2078]
[1750779041611,3.2078,2435.7,2435.6,0.82071]
[1750779041912,0.82066,2435.8,2435.7,0.82068]
[1750779042110,5.92147,2436.0,2435.5,2.0841]
[1750779042300,0.8208,2435.4,2435.3,0.82079]
[1750779042505,5.25952,2435.7,2435.5,0.82074]
[1750779042506,0.82075,2435.6,2435.5,0.82074]
[1750779043514,4.02849,2435.7,2435.6,0.82071]
[1750779043709,3.2078,2435.7,2435.6,0.82071]
[1750779044714,0.82071,2435.6,2435.5,1.49283]
[1750779045617,5.25952,2435.7,2435.4,0.82076]
[1750779045815,0.82075,2435.5,2435.4,0.82076]
[1750779046419,0.82078,2435.4,2435.3,2.21798]
[1750779046813,0.82085,2435.3,2435.2,0.82083]
[1750779047422,0.82078,2435.5,2435.4,0.82076]
[1750779047721,3.2078,2435.7,2435.2,2.05205]
[1750779047908,3.2078,2435.7,2435.6,0.82071]
[1750779047909,4.0285,2435.7,2435.6,0.82071]
[1750779048311,0.82078,2435.5,2435.4,0.82076]
[1750779048735,0.82075,2435.6,2435.5,0.82072]
[1750779049935,0.82078,2435.5,2435.4,0.82076]
[1750779050532,0.8845315,2435.5,2435.4,0.82076]
[1750779050930,0.8845315,2435.5,2435.4,0.82078]
[1750779051530,0.82078,2435.4,2435.3,3.2078]
[1750779051735,2.21918,2435.4,2435.3,3.2078]
[1750779051936,2.21918,2435.4,2435.3,4.02862]
[1750779052137,0.82082,2435.3,2435.2,0.82082]
[1750779052529,1.3984,2435.4,2434.9,5.3137]
[1750779052731,0.82089,2435.2,2435.1,0.82086]
[1750779052936,0.82084,2435.3,2435.2,0.82085]
[1750779053631,8.2614,2435.4,2434.7,6.47345206]
[1750779053832,0.82084,2435.3,2435.2,0.82082]
[1750779054035,0.82084,2435.3,2434.8,3.48291]
[1750779054230,0.82088,2435.2,2435.1,0.82086]
[1750779054632,0.82091,2435.1,2435.0,0.82089]
[1750779055933,0.82087,2435.2,2435.1,0.82086]
[1750779057645,0.8209,2435.1,2435.0,0.82089]
[1750779058658,0.82087,2435.2,2435.1,0.82086]
[1750779059150,0.8209,2435.1,2435.0,0.8209]
[1750779059340,0.82087,2435.2,2435.1,0.82087]
[1750779059540,0.82094,2435.0,2434.9,0.82094]
[1750779060246,0.82089,2435.1,2435.0,0.82089]
[1750779060947,0.82093,2435.0,2434.9,0.82093]
[1750779061144,15.84148394,2435.0,2434.6,3.26565206]
[1750779061449,3.2078,2434.7,2434.6,0.82105]
[1750779061747,10.0718,2435.1,2435.0,0.82091]
[1750779061956,10.89268,2435.1,2435.0,0.82091]
[1750779062455,3.2078,2435.1,2435.0,0.82091]
[1750779062948,4.02868,2435.1,2435.0,0.82091]
[1750779063544,3.2078,2435.1,2435.0,0.82091]
[1750779064553,4.02868,2435.1,2435.0,0.82091]
[1750779064847,3.2078,2435.1,2435.0,0.82091]
[1750779065738,7.5288,2435.2,2435.1,0.82088]
[1750779066052,0.82076,2435.5,2435.4,0.82075]
[1750779066243,5.40716,2435.8,2435.7,0.82068]
[1750779066446,3.9175,2435.8,2435.7,0.82068]
[1750779066654,3.2078,2435.8,2435.7,0.82068]
[1750779067441,0.82057,2436.1,2435.6,2.0851]
[1750779067753,0.82057,2436.1,2435.7,0.82068]
[1750779067754,0.6777,2436.1,2435.7,0.82068]
[1750779067953,2.14609,2436.0,2435.9,0.82061]
[1750779068253,7.68459,2436.0,2435.9,0.82061]
[1750779068551,0.82065,2435.8,2435.7,0.82066]
[1750779068744,0.82063,2435.9,2435.8,0.82062]
[1750779069138,7.68461,2436.0,2435.9,0.82061]
[1750779069950,0.82063,2435.9,2435.8,0.82062]
[1750779070852,6.864,2436.0,2435.6,0.82067]
[1750779070853,0.82068,2435.7,2435.6,0.82067]
[1750779071054,0.82067,2435.8,2435.7,0.82066]
[1750779071348,2.25923,2435.9,2435.8,0.82064]
[1750779071554,7.68461,2436.0,2435.9,0.82061]
[1750779071950,0.82067,2435.8,2435.7,0.82066]
[1750779072150,6.864,2436.0,2435.5,6.64475]
[1750779072352,7.6846,2436.0,2435.9,0.82061]
[1750779072743,6.864,2436.0,2435.5,4.5929]
[1750779072945,0.82064,2435.8,2435.5,4.5929]
[1750779073155,0.82063,2435.9,2435.8,0.82062]
[1750779073859,6.864,2436.0,2435.9,0.82061]
[1750779074048,0.6777,2436.1,2436.0,0.82058]
[1750779074354,0.6777,2436.1,2435.9,4.02839]
[1750779074558,0.82058,2436.0,2435.9,3.2078]
[1750779075250,0.82061,2436.0,2435.6,2.05179]
[1750779075450,0.82061,2436.0,2435.9,0.82058]
[1750779076353,0.82061,2435.9,2435.8,3.2078]
[1750779076554,0.82068,2435.7,2435.6,2.23108]
[1750779076754,0.82068,2435.7,2435.6,0.82068]
[1750779076955,0.82071,2435.6,2435.5,1.47714]
[1750779077157,0.82071,2435.6,2435.5,0.82074]
[1750779077550,2.05187,2435.5,2435.1,3.2078]
[1750779077852,0.82087,2435.2,2435.1,3.2078]
[1750779078047,7.67387,2435.2,2435.1,3.2078]
[1750779079853,7.67387,2435.2,2435.1,4.02868]
[1750779080054,7.7376215,2435.2,2435.1,4.02868]
[1750779081056,7.7376215,2435.2,2435.1,0.82088]
[1750779081559,0.0637515,2435.2,2435.1,0.82088]
[1750779082351,2.05162,2435.8,2435.1,8.97848394]
[1750779082554,0.82076,2435.5,2435.4,0.82077]
[1750779082757,0.82076,2435.5,2435.4,4.02857]
[1750779083055,0.82073,2435.6,2435.5,0.82073]
[1750779083249,2.2328,2435.7,2435.6,0.82071]
[1750779083656,0.82072,2435.6,2435.5,0.82072]
[1750779083955,6.854,2435.6,2435.5,0.82072]
[1750779084155,1.4121,2435.7,2435.6,0.82071]
[1750779084344,8.2661,2435.7,2435.6,0.82071]
[1750779084643,1.4121,2435.7,2435.5,2.24892]
[1750779084848,0.82075,2435.5,2435.4,3.2078]
[1750779085045,0.82075,2435.5,2435.4,4.02858]
[1750779085460,0.82073,2435.6,2435.5,0.82074]
[1750779085954,0.82075,2435.5,2435.4,4.02855]
[1750779086460,0.82075,2435.5,2435.4,3.2078]
[1750779086756,0.82075,2435.5,2435.4,4.02858]
[1750779086957,0.82075,2435.5,2435.4,3.2078]
[1750779088463,0.82078,2435.4,2435.3,0.82081]
[1750779088867,7.67478,2435.4,2435.3,0.82081]
[1750779089767,0.82081,2435.3,2435.2,1.52843]
[1750779089961,0.82085,2435.2,2435.1,3.2078]
[1750779090263,0.8846315,2435.2,2435.1,0.82085]
[1750779091369,0.82088,2435.1,2435.0,4.02868]
[1750779093059,0.9616215,2435.2,2435.1,0.82088]
[1750779093260,0.1407515,2435.2,2435.1,0.82088]
[1750779093554,0.9616015,2435.2,2435.1,2.25298]
[1750779093961,0.82088,2435.1,2435.0,6.47133235]
[1750779094164,0.82088,2435.1,2435.0,0.82091]
[1750779094861,0.82088,2435.1,2435.0,4.02871]
[1750779095059,0.1407515,2435.2,2435.1,0.82088]
[1750779095758,0.1407515,2435.2,2435.1,2.25498]
[1750779096463,0.1407515,2435.2,2435.1,11.28919629]
[1750779097559,0.1071,2435.4,2435.1,15.46831629]
[1750779097866,0.1071,2435.4,2435.3,7.29214235]
[1750779098067,0.82064,2435.8,2435.7,0.82068]
[1750779098265,6.854,2435.8,2435.7,0.82068]
[1750779098859,7.67464,2435.8,2435.7,0.82068]
[1750779099264,0.82068,2435.7,2435.6,1.49299]
[1750779099558,0.82068,2435.7,2435.6,0.82069]
[1750779099760,0.82074,2435.6,2435.5,0.82072]
[1750779100869,0.82077,2435.5,2435.4,0.82075]
[1750779101660,6.854,2435.8,2435.6,0.82068]
[1750779101962,0.2853,2435.7,2435.6,0.82068]
[1750779103169,1.10598,2435.7,2435.6,0.82068]
[1750779103760,0.82074,2435.6,2435.5,0.82071]
[1750779104366,0.2853,2435.7,2435.3,7.81643235]
[1750779104367,1.10599,2435.7,2435.6,0.82071]
[1750779104872,0.82069,2435.7,2435.6,0.82071]
[1750779107174,0.82075,2435.6,2435.5,0.82072]
[1750779108164,0.82078,2435.5,2435.4,0.82075]
[1750779109473,0.8845315,2435.5,2435.4,0.82075]
[1750779109974,0.0637515,2435.5,2435.4,0.82075]
[1750779110458,0.0637515,2435.5,2435.4,2.21385]
[1750779110661,0.0637515,2435.5,2435.4,5.47738235]
[1750779115573,0.0637515,2435.5,2435.4,2.21385]
[1750779116472,0.8845015,2435.5,2435.4,2.21385]
[1750779116871,0.0637515,2435.5,2435.4,2.21385]
[1750779117470,0.0637515,2435.5,2435.4,5.47738235]
[1750779120077,0.0637515,2435.5,2435.4,2.21385]
[1750779120278,0.0637515,2435.5,2435.4,5.47738235]
[1750779120883,0.8845015,2435.5,2435.4,5.47738235]
[1750779121070,0.82078,2435.4,2435.3,6.47133235]
[1750779121270,1.50898,2435.4,2435.3,3.2078]
[1750779121569,2.22028,2435.4,2435.3,3.2078]
[1750779121975,0.82085,2435.2,2435.1,3.26353235]
[1750779122373,0.82088,2435.1,2435.0,3.26353235]
[1750779122578,9.15365394,2435.2,2434.8,3.26353235]
[1750779122779,5.77068394,2434.9,2434.6,3.26353235]
[1750779122976,5.77068394,2434.9,2434.5,4.07941544]
[1750779122977,16.05358394,2434.8,2434.4,3.2078]
[1750779123171,0.82108,2434.5,2434.4,3.2078]
[1750779123576,1.3844,2434.8,2434.4,3.2078]
[1750779123775,4.5386,2435.3,2434.7,3.2078]
[1750779123966,6.846,2435.2,2435.1,0.82086]
[1750779124171,0.82085,2435.3,2435.2,0.82083]
[1750779124371,7.66685,2435.3,2435.2,0.82083]
[1750779124672,0.82085,2435.3,2435.2,0.82083]
[1750779124877,7.66785,2435.3,2435.2,0.82083]
[1750779125268,7.66785,2435.3,2435.0,5.3366]
[1750779125269,9.0079,2435.4,2435.3,0.82081]
[1750779125670,0.82084,2435.3,2435.2,0.82084]
[1750779125874,0.82086,2435.2,2435.1,0.82085]
[1750779126177,9.0079,2435.4,2435.3,0.82081]
[1750779126370,0.82082,2435.3,2435.2,0.82082]
[1750779126570,0.82086,2435.2,2435.1,0.82087]
[1750779126781,0.82086,2435.2,2435.0,6.15749]
[1750779127082,0.82085,2435.2,2435.1,0.82086]
[1750779127381,0.82088,2435.1,2435.0,6.15749]
[1750779127787,0.82087,2435.2,2435.1,0.82086]
[1750779128780,0.82088,2435.1,2435.0,6.15749]
[1750779129181,0.82087,2435.2,2435.1,0.82086]
[1750779129582,0.82088,2435.1,2435.0,6.15749]
[1750779130084,0.82088,2435.1,2435.0,5.3366]
[1750779131681,0.82088,2435.1,2435.0,6.15751]
[1750779131982,0.82088,2435.1,2435.0,5.3366]
[1750779132377,0.82088,2435.1,2435.0,6.15751]
[1750779132779,0.82088,2435.1,2435.0,3.2078]
[1750779134871,2.24348,2435.1,2435.0,3.2078]
[1750779135678,0.82098,2434.8,2434.7,0.821]
[1750779135978,0.82098,2434.9,2434.6,3.2078]
[1750779136182,6.848,2434.8,2434.6,4.632]